bitfinex/quotes_ETHUSD_20251218
["timestamp","ask_amount","ask_price","bid_price","bid_amount"]
[1766068691249,0.46438023,2956.6,2954.9,0.589]
[1766068691250,0.46438023,2956.1,2954.9,0.589]
[1766068691440,0.46438023,2956.1,2954.0,3.38518822]
[1766068691441,7.55005674,2955.7,2954.0,4.3795]
[1766068691641,0.46438023,2955.6,2954.1,0.589]
[1766068691945,7.95556074,2956.0,2954.1,1.05338023]
[1766068692271,1.05238023,2955.9,2954.4,0.46438023]
[1766068692569,0.46438023,2955.8,2954.4,3.84916225]
[1766068692773,0.8602437,2955.7,2954.4,0.46438023]
[1766068692940,0.46438023,2955.3,2954.0,0.588]
[1766068693139,1.05238023,2955.3,2954.0,0.588]
[1766068693440,0.405504,2955.2,2954.0,0.588]
[1766068693977,7.55005674,2954.9,2953.5,3.38578791]
[1766068694194,0.46438023,2954.8,2953.7,3.38558068]
[1766068694340,0.993504,2955.3,2953.6,0.588]
[1766068694341,0.46438023,2955.3,2954.1,4.2009]
[1766068694671,2.3803,2955.2,2954.1,0.588]
[1766068695000,0.46438023,2955.3,2954.1,0.588]
[1766068695137,3.84813639,2955.3,2954.1,0.588]
[1766068695338,7.55005674,2954.2,2953.0,4.2009]
[1766068695541,0.46438023,2954.1,2952.8,0.001]
[1766068695739,0.405504,2954.0,2952.8,0.001]
[1766068695981,0.587,2953.9,2952.8,0.001]
[1766068696274,0.46438023,2953.6,2952.8,0.001]
[1766068696449,0.46358023,2953.6,2952.8,0.001]
[1766068696776,0.587,2953.9,2952.3,4.23476792]
[1766068696777,0.70602837,2953.5,2952.3,4.23476792]
[1766068696947,0.405504,2953.3,2951.9,0.49139]
[1766068697149,7.55005674,2952.9,2951.6,0.001]
[1766068697336,0.588,2952.8,2951.6,0.001]
[1766068697538,7.55005674,2951.9,2950.5,4.2009]
[1766068697780,7.55005674,2951.9,2950.5,0.587]
[1766068697781,2.3803,2951.8,2950.5,0.587]
[1766068698439,2.84468023,2951.8,2950.5,0.587]
[1766068698760,2.84468023,2951.8,2950.4,0.001]
[1766068698761,0.46438023,2951.3,2950.4,0.001]
[1766068698949,7.55005674,2950.9,2949.5,3.39037881]
[1766068699150,1.05138023,2950.8,2949.3,0.587]
[1766068699367,1.05138023,2950.8,2949.2,4.2019]
[1766068699563,7.55005674,2950.4,2949.2,0.001]
[1766068699738,7.55005674,2949.9,2949.2,0.001]
[1766068699939,7.55005674,2949.9,2948.8,0.588]
[1766068700387,0.10157612,2950.8,2948.8,0.588]
[1766068700388,2.3803,2951.5,2949.1,4.2009]
[1766068700592,7.55005674,2950.3,2948.8,0.001]
[1766068700755,0.46438023,2950.2,2948.8,0.001]
[1766068701085,0.46438023,2950.2,2949.2,3.39066162]
[1766068701371,0.46438023,2950.2,2949.1,3.39083973]
[1766068701584,3.48985174,2951.4,2949.1,3.39083973]
[1766068701585,2.3803,2951.7,2949.6,6.5776]
[1766068701768,2.3803,2951.7,2949.4,3.3905201]
[1766068701769,7.55005674,2951.5,2950.2,2.3767]
[1766068701945,2.48187612,2952.3,2950.5,4.2009]
[1766068701946,0.587,2951.8,2950.5,4.2009]
[1766068702140,0.587,2951.9,2950.9,4.2009]
[1766068702340,2.48187612,2952.8,2951.0,4.2009]
[1766068702341,7.55005674,2952.5,2951.0,4.2009]
[1766068702643,7.55005674,2952.0,2950.2,2.3767]
[1766068702959,7.55005674,2952.0,2950.7,2.3767]
[1766068702960,0.587,2951.9,2950.7,2.3767]
[1766068703161,0.587,2951.9,2950.4,3.97634927]
[1766068703162,1.05138023,2951.9,2950.4,3.97634927]
[1766068703365,3.43168023,2951.9,2950.5,3.38925545]
[1766068703686,3.43168023,2951.9,2950.5,3.38921782]
[1766068703687,2.84468023,2951.7,2950.5,3.38921782]
[1766068703885,0.46438023,2951.9,2950.5,4.93746926]
[1766068704067,0.586,2951.8,2950.6,3.38911706]
[1766068704247,0.586,2951.8,2950.5,8.32671345]
[1766068704444,0.586,2951.8,2950.6,3.3891175]
[1766068704652,7.55005674,2952.5,2950.8,2.3767]
[1766068704853,0.10157612,2953.2,2950.9,0.82367]
[1766068704854,7.55005674,2952.0,2950.9,0.82367]
[1766068705076,7.55005674,2952.7,2951.0,2.3767]
[1766068705264,7.55005674,2952.7,2951.1,2.3767]
[1766068705464,0.587,2952.6,2951.4,4.2009]
[1766068705666,1.05138023,2952.6,2951.2,0.587]
[1766068705848,1.05138023,2952.6,2951.2,4.2009]
[1766068706043,7.55005674,2952.2,2951.0,0.586]
[1766068706259,7.55005674,2952.2,2950.8,7.1636]
[1766068706260,1.05038023,2952.1,2950.8,7.1636]
[1766068706656,0.46438023,2952.1,2950.9,6.77759326]
[1766068706858,0.587,2952.3,2951.0,0.03388681]
[1766068707159,0.587,2952.3,2951.0,6.5776]
[1766068707356,0.587,2952.3,2951.0,7.63283966]
[1766068707547,0.405504,2952.9,2951.5,4.2009]
[1766068707548,7.55005674,2952.9,2951.5,4.2009]
[1766068707748,7.55005674,2952.9,2951.5,4.7869]
[1766068707948,0.46438023,2952.8,2951.5,4.7869]
[1766068708150,0.46438023,2953.0,2951.4,4.2009]
[1766068708448,0.586,2952.7,2951.7,4.2009]
[1766068708652,7.55005674,2953.1,2951.9,4.2009]
[1766068708981,7.55005674,2953.8,2952.2,2.3767]
[1766068709203,7.55005674,2954.1,2952.5,2.3767]
[1766068709348,0.586,2954.0,2952.5,6.5776]
[1766068709677,0.586,2954.0,2951.9,10.16294589]
[1766068709678,7.55005674,2953.6,2952.2,0.586]
[1766068709879,7.55005674,2953.1,2951.9,4.2009]
[1766068710080,0.586,2953.0,2951.9,4.2009]
[1766068710252,0.46438023,2953.5,2952.0,3.38753387]
[1766068710447,0.586,2953.4,2952.1,4.2009]
[1766068710652,0.586,2953.4,2952.2,4.2009]
[1766068710880,0.586,2953.4,2952.1,3.38739552]
[1766068711046,0.46438023,2953.3,2951.9,0.46438023]
[1766068711244,7.55005674,2952.6,2951.5,0.001]
[1766068711487,0.586,2952.6,2951.5,0.001]
[1766068711652,0.586,2952.6,2951.7,4.2009]
[1766068711987,0.586,2952.6,2951.7,0.586]
[1766068712211,0.46438023,2952.9,2951.9,3.38757796]
[1766068712372,0.46438023,2952.9,2951.8,2.3767]
[1766068712572,7.55005674,2952.5,2951.7,0.586]
[1766068712895,2.3803,2953.6,2951.8,0.47807577]
[1766068713103,0.585,2953.9,2952.4,4.2009]
[1766068713403,4.58239634,2955.3,2952.6,0.405504]
[1766068713404,0.585,2954.4,2952.6,0.405504]
[1766068713694,7.55005674,2955.2,2953.4,4.2009]
[1766068713864,7.55005674,2955.2,2952.9,0.405504]
[1766068713865,7.55005674,2955.2,2953.9,4.2009]
[1766068714066,0.46438023,2955.1,2953.9,4.2009]
[1766068714466,7.55005674,2955.2,2953.9,4.2009]
[1766068714668,7.55005674,2955.2,2954.0,4.2009]
[1766068714867,7.55005674,2955.2,2953.9,0.585]
[1766068714868,1.2778859,2955.1,2953.9,0.585]
[1766068715069,7.55005674,2955.2,2953.5,0.42009]
[1766068715269,7.55005674,2955.2,2951.0,1.06523965]
[1766068715270,7.55005674,2955.2,2953.4,0.46438023]
[1766068715470,7.55005674,2954.7,2953.2,0.585]
[1766068715677,1.04938023,2954.6,2953.3,0.585]
[1766068716221,1.04938023,2954.6,2953.0,0.46438023]
[1766068716222,0.46438023,2953.6,2951.6,3.38797394]
[1766068716494,0.585,2953.5,2952.1,2.3767]
[1766068716668,0.405504,2953.4,2951.9,3.38757121]
[1766068716999,0.405504,2953.2,2951.8,4.7859]
[1766068717188,0.405504,2953.4,2952.1,4.2009]
[1766068717364,0.585,2953.5,2952.1,4.2009]
[1766068717559,0.585,2953.5,2952.3,4.2009]
[1766068717560,0.584,2953.4,2952.3,4.2009]
[1766068717902,0.584,2953.4,2952.1,0.584]
[1766068718065,0.584,2953.4,2952.3,4.2009]
[1766068718266,1.04838023,2953.4,2951.9,2.3767]
[1766068718496,1.04838023,2953.4,2952.1,3.3873915]
[1766068718774,0.584,2953.4,2952.1,4.2009]
[1766068718983,0.584,2953.4,2952.1,6.5776]
[1766068719187,0.86988423,2953.1,2951.6,4.2009]
[1766068719501,0.86988423,2953.1,2951.5,3.38908545]
[1766068719502,0.46438023,2953.1,2951.8,4.2009]
[1766068719684,0.46438023,2953.1,2952.0,3.38753055]
[1766068720003,7.55005674,2953.2,2951.9,3.38761266]
[1766068720004,0.584,2953.2,2951.9,3.38761266]
[1766068720297,0.584,2953.2,2952.0,10.97588718]
[1766068720599,0.584,2953.2,2952.0,3.38748738]
[1766068720771,0.584,2953.2,2952.0,7.5884247]
[1766068720971,0.584,2953.2,2952.0,7.58841254]
[1766068721178,0.5832,2953.2,2952.0,7.58841254]
[1766068721701,0.405504,2952.8,2951.5,0.001]
[1766068721916,0.46438023,2952.4,2951.5,0.001]
[1766068722198,0.405504,2951.8,2950.3,0.001]
[1766068722402,7.55005674,2951.5,2950.4,3.38935754]
[1766068722578,0.46438023,2951.4,2950.3,0.001]
[1766068722995,7.55005674,2951.5,2950.3,0.001]
[1766068723179,0.583,2951.7,2950.4,4.3627]
[1766068723378,2.3783,2950.9,2949.1,4.3637]
[1766068723671,1.45288423,2950.8,2949.2,5.03566]
[1766068724076,1.45288423,2950.8,2949.4,3.3904918]
[1766068724276,1.45288423,2950.8,2949.3,2.3659]
[1766068724595,0.405504,2951.1,2949.6,4.3627]
[1766068724798,2.84268023,2950.9,2949.6,0.583]
[1766068725005,0.405504,2950.8,2949.6,3.97323827]
[1766068725212,0.583,2950.7,2949.6,0.583]
[1766068725573,0.583,2950.7,2949.6,7.3635722]
[1766068725773,0.583,2950.7,2949.8,4.3627]
[1766068725972,7.55005674,2951.5,2950.0,4.3627]
[1766068726297,2.3783,2951.4,2949.9,4.3627]
[1766068726766,2.84268023,2951.4,2949.9,7.75254274]
[1766068726966,0.583,2951.6,2950.0,0.0338983]
[1766068727168,2.3783,2952.6,2950.6,2.3659]
[1766068727403,0.46438023,2951.9,2950.8,6.7286]
[1766068727606,0.583,2952.2,2950.9,4.3627]
[1766068728122,0.583,2952.2,2948.9,1.61430626]
[1766068728123,7.55005674,2951.5,2949.2,2.3659]
[1766068728267,9.92835674,2951.0,2949.3,7.3116]
[1766068728472,9.92835674,2951.0,2949.6,4.3627]
[1766068728473,0.583,2950.9,2949.6,4.3627]
[1766068728903,0.583,2950.9,2949.7,11.14304087]
[1766068729215,0.46438023,2951.4,2949.7,11.14304087]
[1766068729216,0.46438023,2951.7,2950.1,2.3659]
[1766068729406,0.46438023,2951.7,2949.8,0.583]
[1766068729407,2.84268023,2951.5,2949.8,0.583]
[1766068729613,0.46438023,2951.5,2950.1,2.3659]
[1766068729775,0.46438023,2951.5,2950.3,4.3627]
[1766068729976,0.46438023,2951.5,2950.3,4.9457]
[1766068730171,0.46438023,2951.5,2950.3,0.583]
[1766068730372,0.46438023,2951.5,2950.2,4.3627]
[1766068730572,0.46438023,2951.5,2950.2,6.7286]
[1766068730834,0.583,2951.6,2950.4,7.75207093]
[1766068730998,7.87507516,2952.7,2950.9,4.3627]
[1766068731206,7.87507516,2952.7,2951.3,4.3627]
[1766068731412,2.3783,2952.5,2950.5,4.82708023]
[1766068731704,9.92835674,2952.2,2950.6,4.9457]
[1766068731903,7.55005674,2952.2,2950.8,4.3627]
[1766068732203,0.583,2952.1,2951.1,4.3627]
[1766068732411,0.583,2952.1,2951.1,4.9457]
[1766068732785,0.583,2952.1,2951.1,8.33426439]
[1766068732993,0.583,2952.1,2951.1,4.9457]
[1766068733494,0.583,2952.1,2950.5,4.3627]
[1766068733495,1.04738023,2952.1,2950.5,4.3627]
[1766068733805,4.2389859,2952.1,2950.6,0.583]
[1766068733989,1.04738023,2952.1,2950.9,4.3627]
[1766068734193,7.55005674,2952.2,2951.0,0.583]
[1766068734378,0.583,2952.2,2951.1,10.11716697]
[1766068734572,7.55005674,2952.7,2951.3,4.3627]
[1766068734773,7.55005674,2953.3,2951.5,6.77621548]
[1766068734971,0.583,2953.2,2951.9,4.3627]
[1766068735173,7.55005674,2953.8,2952.4,2.3659]
[1766068735413,8.13305674,2953.8,2952.7,4.3627]
[1766068735578,0.583,2953.8,2952.8,2.3659]
[1766068735913,0.002,2954.6,2953.4,2.3659]
[1766068736122,0.002,2954.6,2953.5,2.9489]
[1766068736276,0.002,2954.6,2953.8,4.3627]
[1766068736606,0.002,2954.6,2953.9,0.583]
[1766068736807,0.002,2954.6,2953.9,3.96829808]
[1766068737114,0.002,2954.6,2953.9,3.96833824]
[1766068737324,0.002,2954.6,2953.9,0.583]
[1766068737615,0.002,2954.6,2953.7,0.583]
[1766068738127,0.46438023,2954.2,2952.6,0.46438023]
[1766068738423,0.002,2954.6,2953.6,4.3627]
[1766068738623,0.002,2954.6,2953.9,3.38532733]
[1766068738782,0.002,2954.6,2954.0,0.583]
[1766068739094,0.002,2954.6,2954.1,4.3627]
[1766068739272,0.002,2954.6,2954.0,2.9489]
[1766068739273,7.55005674,2955.5,2954.2,4.3627]
[1766068739473,7.55005674,2955.5,2954.2,6.7286]
[1766068739678,0.46438023,2955.4,2953.9,3.38534818]
[1766068739903,0.46438023,2955.4,2953.7,6.7286]
[1766068739904,7.55005674,2955.0,2953.7,6.7286]
[1766068740104,0.86988423,2954.9,2953.7,6.7286]
[1766068740273,7.55005674,2954.0,2952.3,2.3659]
[1766068740488,2.3783,2954.4,2952.8,2.3659]
[1766068740699,0.46438023,2953.6,2951.8,6.4689]
[1766068740900,7.55005674,2952.7,2950.8,4.0952]
[1766068741105,0.583,2952.6,2951.7,3.38780926]
[1766068741420,0.583,2952.6,2951.1,0.583]
[1766068741421,0.405504,2952.5,2951.1,0.583]
[1766068741778,1.04738023,2952.6,2951.8,3.38776301]
[1766068741978,0.405504,2953.2,2951.6,7.48309799]
[1766068742203,3.24818423,2952.3,2950.3,2.3737]
[1766068742403,0.10157612,2952.9,2951.1,4.0952]
[1766068742404,0.583,2952.2,2951.1,4.0952]
[1766068742604,0.583,2952.2,2951.2,4.6782]
[1766068742806,0.583,2952.2,2950.7,3.38893065]
[1766068743014,2.3783,2952.7,2951.4,4.0952]
[1766068743015,0.583,2952.7,2951.4,4.0952]
[1766068743331,2.3783,2952.5,2951.0,0.583]
[1766068743512,0.405504,2952.6,2951.3,4.0952]
[1766068743701,0.405504,2952.6,2951.0,2.3737]
[1766068744010,3.48775085,2953.2,2950.8,0.33889307]
[1766068744011,9.10649787,2953.5,2951.5,4.0952]
[1766068744176,0.10157612,2955.0,2952.4,6.4689]
[1766068744177,0.583,2954.1,2952.4,6.4689]
[1766068744376,2.3783,2953.7,2951.7,2.3737]
[1766068744590,0.583,2953.6,2952.1,2.3737]
[1766068744815,0.583,2953.6,2952.2,8.06548886]
[1766068744989,1.04738023,2953.6,2952.2,4.6782]
[1766068745327,2.3783,2953.2,2951.6,0.4500704]
[1766068745478,0.405504,2953.0,2951.8,3.38768799]
[1766068745676,2.3783,2953.2,2952.3,3.38718964]
[1766068745677,0.46438023,2953.2,2952.3,3.38718964]
[1766068745879,9.10649787,2953.8,2952.5,4.0952]
[1766068745880,0.5822,2953.6,2952.5,4.0952]
[1766068746185,0.10357612,2954.6,2953.2,4.0952]
[1766068746186,9.10649787,2954.3,2953.2,4.0952]
[1766068746404,0.46438023,2953.7,2951.3,2.41189005]
[1766068746714,9.10649787,2953.8,2951.8,0.583]
[1766068746715,2.84268023,2953.2,2951.8,0.583]
[1766068746885,2.84268023,2953.2,2951.1,3.38850573]
[1766068746886,0.46438023,2952.7,2951.1,3.38850573]
[1766068747085,0.583,2953.1,2951.8,6.77550244]
[1766068747286,0.46438023,2953.3,2952.1,4.0952]
[1766068747480,0.583,2953.4,2952.1,2.3737]
[1766068747708,0.405504,2953.3,2951.7,4.0952]
[1766068748011,0.405504,2953.3,2951.4,0.46438023]
[1766068748012,1.04738023,2953.4,2951.9,2.3737]
[1766068748200,0.988504,2953.3,2952.0,4.0952]
[1766068748576,0.46438023,2953.2,2951.8,10.16328348]
[1766068748782,0.405504,2953.2,2951.0,0.46438023]
[1766068749010,0.583,2953.3,2951.4,0.46438023]
[1766068749326,0.583,2953.3,2952.1,2.3737]
[1766068749644,0.583,2953.3,2952.5,4.0952]
[1766068750139,0.583,2953.3,2950.8,4.43409307]
[1766068750140,2.783804,2952.5,2950.8,4.43409307]
[1766068750354,0.46438023,2952.1,2951.0,3.38856746]
[1766068750504,0.46438023,2952.1,2950.3,0.001]
[1766068750505,11.48479787,2951.7,2950.3,0.001]
[1766068750705,1.14895635,2951.6,2950.3,0.001]
[1766068750927,0.46438023,2951.3,2950.3,0.001]
[1766068751129,3.24818423,2951.5,2950.3,0.001]
[1766068751332,2.21009046,2951.5,2950.3,0.001]
[1766068751532,4.58839046,2951.5,2950.3,0.001]
[1766068751737,13.39808642,2951.5,2950.3,0.001]
[1766068751940,11.01978642,2951.5,2950.3,0.001]
[1766068752245,2.3783,2951.4,2950.3,0.001]
[1766068752550,0.583,2951.6,2950.6,2.4164]
[1766068752705,0.405504,2952.2,2950.7,4.2777]
[1766068752706,2.3783,2952.2,2950.7,4.2777]
[1766068752913,0.583,2952.0,2950.7,6.6941]
[1766068753134,2.84268023,2951.8,2950.5,3.38918805]
[1766068753442,2.84268023,2951.8,2950.5,4.8607]
[1766068753443,0.46438023,2951.8,2950.5,4.8607]
[1766068753645,0.46438023,2951.8,2950.8,4.2777]
[1766068753829,0.583,2952.0,2950.9,6.6941]
[1766068754157,3.48968259,2953.3,2950.8,3.20205473]
[1766068754158,8.80969596,2952.6,2950.8,3.20205473]
[1766068754314,2.3783,2952.3,2951.0,0.583]
[1766068754514,0.583,2952.4,2951.0,0.583]
[1766068754515,0.405504,2952.2,2951.0,0.583]
[1766068754713,2.3783,2951.9,2950.6,0.46438023]
[1766068754914,1.10771423,2951.8,2950.7,3.97194548]
[1766068755127,0.86988423,2951.8,2950.7,0.583]
[1766068755438,2.9613,2951.9,2950.8,4.2777]
[1766068755439,0.583,2951.9,2950.8,4.2777]
[1766068755648,0.583,2951.9,2950.9,2.4164]
[1766068755806,0.405504,2951.4,2950.3,0.001]
[1766068756007,0.405504,2951.2,2950.3,0.001]
[1766068756211,0.46438023,2951.1,2950.3,0.001]
[1766068756412,0.46438023,2950.9,2949.8,4.2777]
[1766068756641,0.46438023,2950.9,2949.5,4.8607]
[1766068756811,0.405504,2950.8,2949.5,6.6941]
[1766068757234,1.04738023,2950.9,2949.5,10.08449379]
[1766068757425,2.47987612,2950.7,2949.1,0.001]
[1766068757749,2.47987612,2950.7,2948.9,0.001]
[1766068757750,2.783804,2949.9,2948.9,0.001]
[1766068757946,0.46438023,2948.9,2948.0,0.001]
[1766068758147,0.92740762,2948.9,2948.0,0.001]
[1766068758308,0.583,2949.0,2948.0,0.001]
[1766068758511,2.3773,2948.9,2947.6,0.001]
[1766068758711,2.3753,2948.7,2947.6,0.001]
[1766068759011,0.46438023,2948.4,2947.0,2.4164]
[1766068759215,8.80969596,2949.5,2947.2,10.17913999]
[1766068759531,0.583,2949.4,2947.6,4.2777]
[1766068759841,0.583,2949.4,2947.5,4.2777]
[1766068759842,0.405504,2949.0,2947.5,4.2777]
[1766068760042,2.9544,2948.9,2947.5,4.2777]
[1766068760248,8.80969596,2948.4,2946.6,6.6941]
[1766068760545,2.3714,2947.9,2946.5,4.2807]
[1766068760877,1.04738023,2948.3,2946.6,3.39374193]
[1766068761145,1.04738023,2948.9,2947.5,4.2777]
[1766068761347,0.583,2948.9,2947.7,4.2777]
[1766068761548,2.3714,2948.7,2947.3,0.583]
[1766068761844,0.46438023,2948.8,2947.4,4.2777]
[1766068762042,0.583,2948.9,2947.6,4.2777]
[1766068762250,0.583,2948.9,2947.7,2.4164]
[1766068762547,0.405504,2948.6,2947.1,2.4164]
[1766068762750,0.405504,2948.4,2946.9,4.2777]
[1766068762924,2.3714,2948.1,2946.6,0.583]
[1766068763128,2.3714,2948.1,2946.5,4.2807]
[1766068763129,0.86988423,2947.8,2946.5,4.2807]
[1766068763329,0.405504,2947.4,2945.7,4.2777]
[1766068763645,0.405504,2947.4,2945.5,2.4164]
[1766068763646,2.3714,2947.3,2945.5,0.583]
[1766068763815,0.86988423,2947.0,2945.5,4.8607]
[1766068764014,0.405504,2947.0,2945.5,4.8607]
[1766068764213,0.7414944,2947.0,2945.7,3.39475688]
[1766068764453,8.80969596,2947.6,2945.5,8.74166935]
[1766068764454,2.3714,2947.8,2946.4,3.39397083]
[1766068764625,0.405504,2947.4,2945.7,2.4164]
[1766068764952,2.3714,2946.9,2945.3,3.97822276]
[1766068765151,1.04738023,2946.8,2945.3,3.97822276]
[1766068765452,0.405504,2946.7,2945.5,4.2777]
[1766068765654,2.3714,2946.3,2945.1,0.583]
[1766068765854,0.583,2946.2,2945.1,0.583]
[1766068766157,0.583,2946.2,2944.5,3.39607289]
[1766068766158,2.776904,2946.1,2944.5,3.39605353]
[1766068766338,0.583,2946.2,2944.2,0.583]
[1766068766339,2.83578023,2945.8,2944.2,0.583]
[1766068766539,2.776904,2945.6,2944.2,4.2777]
[1766068766855,2.3714,2945.2,2943.7,7.67474346]
[1766068767054,0.583,2945.1,2943.7,7.67474346]
[1766068767217,3.24128423,2945.9,2943.9,4.2777]
[1766068767417,2.3714,2945.4,2943.9,4.2777]
[1766068767623,2.3714,2945.2,2943.7,9.79352876]
[1766068767850,0.583,2945.3,2944.5,0.001]
[1766068768055,0.405504,2946.0,2944.6,6.6941]
[1766068768261,0.988504,2946.0,2944.6,4.2777]
[1766068768421,2.83578023,2945.9,2944.5,0.001]
[1766068768617,8.80969596,2945.2,2944.5,0.001]
[1766068768818,0.34187802,2945.9,2944.6,4.2777]
[1766068769121,0.34187802,2945.9,2944.5,0.001]
[1766068769122,0.583,2945.8,2944.7,3.39593167]
[1766068769327,2.3714,2946.1,2944.6,7.67372562]
[1766068769547,2.3714,2946.1,2944.6,11.65277262]
[1766068769753,0.583,2946.2,2944.9,2.4164]
[1766068769968,2.3714,2947.6,2945.4,4.2777]
[1766068770161,2.3714,2946.7,2945.5,0.42777]
[1766068770440,11.18109596,2946.2,2944.7,4.2777]
[1766068770663,1.04838023,2946.1,2944.8,4.8617]
[1766068770860,0.405504,2946.0,2944.8,4.2777]
[1766068771064,2.83498023,2945.6,2944.5,0.001]
[1766068771352,0.10157612,2946.3,2944.5,0.001]
[1766068771353,0.584,2945.9,2944.9,4.2777]
[1766068771556,8.80969596,2946.8,2945.1,2.4164]
[1766068771725,2.9554,2946.7,2944.9,5.87069163]
[1766068771923,0.405504,2946.2,2944.9,5.28669163]
[1766068772140,0.405504,2946.2,2945.1,4.2777]
[1766068772141,0.584,2946.2,2945.1,4.2777]
[1766068772340,0.584,2946.2,2945.2,4.2777]
[1766068772577,2.3714,2947.0,2945.2,4.2777]
[1766068772578,8.80969596,2947.4,2945.6,2.4164]
[1766068772743,0.584,2947.2,2945.7,4.8617]
[1766068772943,2.9554,2947.2,2945.8,3.39466358]
[1766068773145,2.9554,2947.2,2945.9,4.2777]
[1766068773146,0.584,2947.2,2945.9,4.2777]
[1766068773342,8.80969596,2947.8,2946.0,2.4164]
[1766068773576,2.3714,2947.6,2946.1,0.24164]
[1766068773779,0.584,2947.7,2946.2,4.2777]
[1766068773981,0.584,2947.7,2946.2,2.4164]
[1766068774194,0.584,2947.7,2946.4,2.4164]
[1766068774351,0.584,2947.7,2945.8,13.57865432]
[1766068774352,0.584,2947.7,2946.5,7.2781]
[1766068774547,0.584,2947.7,2946.6,0.584]
[1766068774741,0.584,2947.7,2946.5,0.584]
[1766068774944,2.3714,2947.5,2946.2,0.584]
[1766068775183,0.405504,2947.1,2945.4,2.4164]
[1766068775344,2.9554,2947.0,2945.4,3.0004]
[1766068775549,2.83578023,2946.9,2945.5,4.2777]
[1766068775997,0.584,2947.0,2946.0,3.39443312]
[1766068776199,2.83578023,2946.9,2945.0,4.2787]
[1766068776479,2.83578023,2946.9,2945.1,0.584]
[1766068776480,2.83578023,2946.4,2945.1,0.584]
[1766068776666,0.584,2946.3,2945.1,0.584]
[1766068776872,0.584,2946.3,2945.0,0.001]
[1766068776873,3.41978023,2946.3,2945.0,0.001]
[1766068777053,0.46438023,2946.1,2945.0,0.001]
[1766068777259,2.3714,2946.2,2945.0,0.001]
[1766068777462,0.34197802,2946.2,2945.0,0.001]
[1766068777658,8.80969596,2946.0,2945.0,0.001]
[1766068777883,0.46438023,2945.9,2945.0,0.001]
[1766068778182,3.79949687,2946.4,2945.0,0.001]
[1766068778183,1.16454762,2946.8,2945.5,2.4164]
[1766068778401,0.584,2946.9,2945.9,2.4164]
[1766068778548,0.584,2946.9,2946.0,4.2777]
[1766068778984,0.584,2947.4,2946.2,4.2777]
[1766068779191,2.3714,2947.2,2945.3,4.2777]
[1766068779490,0.584,2947.1,2945.7,4.2777]
[1766068779701,2.83578023,2946.9,2945.3,3.3951276]
[1766068779874,2.83578023,2946.9,2945.5,3.39499481]
[1766068780079,2.83578023,2946.9,2945.8,3.39464307]
[1766068780275,0.46438023,2946.9,2945.4,0.584]
[1766068780612,0.584,2947.1,2946.2,3.39419023]
[1766068780768,0.584,2947.5,2946.2,4.95654935]
[1766068780974,0.584,2947.5,2946.2,7.67189295]
[1766068781177,2.3714,2947.9,2946.2,7.3724054]
[1766068781488,2.3714,2947.9,2946.4,4.2777]
[1766068781489,2.3714,2947.8,2946.4,4.2777]
[1766068781693,2.3714,2947.8,2946.5,0.584]
[1766068781694,3.41978023,2947.8,2946.5,0.584]
[1766068782072,0.584,2947.8,2946.6,4.2777]
[1766068782290,1.04838023,2947.8,2946.7,0.72781]
[1766068782491,0.584,2947.8,2946.7,3.31181]
[1766068782692,11.18109596,2948.4,2947.0,4.2369]
[1766068782904,1.04838023,2948.3,2947.1,3.97714666]
[1766068783105,0.584,2948.3,2947.1,3.97714666]
[1766068783310,0.002,2948.5,2947.2,6.8209]
[1766068783607,0.002,2948.1,2947.1,7.37031282]
[1766068783907,0.002,2949.3,2947.9,2.584]
[1766068784109,0.002,2949.3,2948.2,4.2369]
[1766068784273,0.002,2949.3,2948.4,6.8209]
[1766068784469,0.002,2949.3,2948.6,4.2369]
[1766068784668,0.002,2949.3,2947.3,1.61841587]
[1766068784669,0.002,2949.3,2948.3,4.8199]
[1766068784875,0.002,2949.3,2948.4,7.62850696]
[1766068785104,0.002,2949.3,2948.5,0.583]
[1766068785808,0.002,2949.3,2947.7,0.46438023]
[1766068785809,2.3734,2949.3,2947.5,4.2369]
[1766068786108,0.46638023,2949.3,2947.9,3.39222978]
[1766068786311,0.46638023,2949.3,2948.0,4.2369]
[1766068786472,8.80969596,2949.0,2947.8,0.583]
[1766068786669,0.46638023,2949.3,2948.3,7.62866715]
[1766068786896,0.002,2949.3,2948.4,3.39161826]
[1766068787097,0.002,2949.3,2948.4,4.2369]
[1766068787312,0.002,2949.3,2948.2,2.584]
[1766068787498,0.002,2949.3,2948.5,0.583]
[1766068787819,0.002,2949.3,2948.1,4.8199]
[1766068788022,0.002,2949.3,2948.4,4.2369]
[1766068788328,0.002,2949.3,2948.3,3.39172587]
[1766068788487,3.38962668,2950.2,2948.3,3.39172587]
[1766068788488,8.80969596,2951.0,2948.7,2.584]
[1766068788689,8.80969596,2951.5,2949.6,0.46438023]
[1766068789020,2.83778023,2951.7,2950.1,4.2369]
[1766068789322,0.46438023,2951.5,2950.1,4.2369]
[1766068789617,0.46438023,2951.5,2950.2,3.9726007]
[1766068789800,8.80969596,2951.6,2950.2,0.583]
[1766068789997,8.80969596,2951.6,2950.3,4.2369]
[1766068790306,8.80969596,2951.6,2950.4,4.2369]
[1766068790513,0.46438023,2951.5,2950.4,6.8209]
[1766068790690,0.46438023,2951.7,2950.4,6.8209]
[1766068791022,0.46438023,2951.5,2949.9,6.8209]
[1766068791225,0.46438023,2951.5,2950.2,4.2369]
[1766068791428,0.583,2951.8,2950.5,3.3892053]
[1766068791592,3.97076851,2951.8,2950.6,0.583]
[1766068791921,0.583,2951.8,2950.6,4.8199]
[1766068792120,0.583,2951.8,2950.5,6.77850936]